Cogmind - Beta 13 @@@ ROGUE MODE // 2024.04.13 @ 20:35:09 Player: Mantreise Result: Destroyed by S-27 Virus with Autogun Performance ------------- Evolutions (6) 3000 Regions Visited (16) 3200 Robots Destroyed (93) 465 Value Destroyed (4230) 4230 Prototype IDs (11) 220 Alien Tech Used (0) 0 Bonus (2368) 2368 TOTAL SCORE: 13483 Bonus ------- High Alert Combat Kills 279 Entered Garrisons 600 Used RIF Installer 500 Entered DSFs 1000 Friendly Fire -11 Cogmind --------- Core Integrity 0/1150 Matter 23/300 Energy 100/100 System Corruption 1% Temperature Cool (0) Movement Flying (35) Location -4/Garrison Parts ------- > --- POWER (2) -------- (None) > --- PROPULSION (6) --- VTOL Module > --- UTILITY (7) ------ Armor Integrity Analyzer Hacking Suite Relay Coupler [Grunt] (25) > --- WEAPON (4) ------- (None) > --- INVENTORY (5) ---- Autogun Rocket Launcher Peak State ------------ > --- POWER ------------ Improved Deuterium Engine Improved Deuterium Engine > --- PROPULSION ------- Armored Huge Wheel > --- UTILITY ---------- Advanced Heat Sink Improved Sensor Array Improved Signal Interpreter Advanced Targeting Computer Recoil Stabilizer > --- WEAPON ----------- Gatling Laser Minigun Flak Gun > --- INVENTORY -------- Makeshift System Restoration Module Advanced Assault Cannon Rocket Launcher [Rating: 45] Favorites ----------- Power Improved Deuterium Engine Engine Improved Deuterium Engine Power Core Light Nuclear Core Propulsion Aluminum Leg Treads Armored Treads Leg Aluminum Leg Wheel Armored Wheel Hover Unit Improved Gravmag System Flight Unit VTOL Module Utility Advanced Targeting Computer Device Sensor Array Storage Compact Matter Pod Processor Advanced Targeting Computer Hackware Hacking Suite Protection Gun Armor Weapon Minigun Energy Gun Particle Gun Ballistic Gun Minigun Ballistic Cannon Advanced Assault Cannon Launcher Subdweller Shrapnel Launcher Special Weapon Improved Remote Datajack Slashing Weapon Ripper Build | -11 -10 -10 -8 -8 -8 -7 -7 -7 -7 -6 -6 -6 -6 -5 -4 -4 ------- Run | Yrd Mat Sub Mat Gar Mat Fac Gar Fac DSF Fac Was Fac DSF Fac Fac Gar Slots Evolved 12 | . . . 4 . . 2 . . . 2 . . . 2 2 . Power 1 | . . . 1 . . . . . . . . . . . . . Propulsion 4 | . . . 1 . . . . . . 1 . . . 2 . . Utility 5 | . . . 1 . . 2 . . . . . . . . 2 . Weapon 2 | . . . 1 . . . . . . 1 . . . . . . Parts Attached 108 | 6 7 17 19 8 15 5 3 . 1 . 6 . 7 7 5 2 Power 18 | 1 2 1 3 3 3 2 1 . . . . . . 1 1 . Engine 10 | 1 2 1 2 . . 2 1 . . . . . . . 1 . Core 8 | . . . 1 3 3 . . . . . . . . 1 . . Reactor . | . . . . . . . . . . . . . . . . . Propulsion 26 | 2 2 4 7 . 1 1 . . . . . . 1 4 3 1 Treads 3 | . . . 3 . . . . . . . . . . . . . Leg 8 | 2 2 2 . . . . . . . . . . 1 . 1 . Wheel 7 | . . 2 3 . 1 1 . . . . . . . . . . Hover 6 | . . . . . . . . . . . . . . 4 2 . Flight 2 | . . . 1 . . . . . . . . . . . . 1 Utility 27 | 1 2 4 5 . 7 2 . . 1 . 2 . . 2 . 1 Device 13 | . 1 2 4 . 2 2 . . . . 2 . . . . . Storage 3 | 1 . . . . 2 . . . . . . . . . . . Processor 5 | . 1 . . . 3 . . . 1 . . . . . . . Hackware 3 | . . . . . . . . . . . . . . 2 . 1 Protection 3 | . . 2 1 . . . . . . . . . . . . . Artifact . | . . . . . . . . . . . . . . . . . Weapon 37 | 2 1 8 4 5 4 . 2 . . . 4 . 6 . 1 . Energy Gun 8 | . 1 4 1 . . . 1 . . . 1 . . . . . Energy Cannon . | . . . . . . . . . . . . . . . . . Ballistic Gun 16 | 2 . 1 3 3 4 . 1 . . . 2 . . . . . Ballistic Cannon 7 | . . . . . . . . . . . 1 . 6 . . . Launcher 4 | . . 2 . 2 . . . . . . . . . . . . Special Weapon 1 | . . . . . . . . . . . . . . . 1 . Impact Weapon . | . . . . . . . . . . . . . . . . . Slashing Weapon 1 | . . 1 . . . . . . . . . . . . . . Piercing Weapon . | . . . . . . . . . . . . . . . . . Special Melee Weapon . | . . . . . . . . . . . . . . . . . Unidentified Prototypes 1 | . . . 1 . . . . . . . . . . . . . Parts Lost 54 | . 2 5 4 7 8 . 2 . 3 . 1 . 11 5 3 3 Power 12 | . 1 1 2 2 2 . . . 1 . . . 1 1 1 . Propulsion 10 | . . . . . 3 . 1 . . . . . 1 3 . 2 Utility 8 | . . . . 2 . . . . 2 . . . 1 1 1 1 Weapon 24 | . 1 4 2 3 3 . 1 . . . 1 . 8 . 1 . Highest Loss Streak 6 | . 1 3 2 4 4 . 1 . 1 . 1 . 6 5 3 3 To Critical Strikes . | . . . . . . . . . . . . . . . . . Average Slot Usage (%) 80 | . 95 89 85 94 79 79 79 84 74 53 59 60 51 38 30 17 Engine 8 | . 12 12 7 4 . 10 15 15 9 6 6 6 5 . 3 . Core 2 | . . . 1 11 12 4 . . . . . . . 4 . . Treads 4 | . . . 14 27 13 . . . . . . . . . . . Leg 8 | . 28 12 . . . . . . . . . . 1 . 3 . Wheel 5 | . . 8 10 . 3 10 12 7 7 6 6 6 2 . . . Device 12 | . 11 10 17 17 9 23 23 23 14 . 7 6 1 . . . Processor 9 | . 12 7 . . 9 15 15 15 18 20 20 20 20 16 8 5 Protection 3 | . . 8 9 8 . . . . . . . . . . . . Energy Gun 6 | . 5 18 7 . . . 2 7 7 6 5 6 1 . . . Ballistic Gun 13 | . 21 5 16 24 24 15 11 15 15 13 9 6 . . . . Naked Turns . | . . . . . . . . . . . . . . . . . Heaviest Build 34 | 12 12 21 29 28 28 29 34 34 34 21 28 25 34 14 13 . Greatest Support 68 | 20 20 40 68 68 68 40 40 28 28 28 28 28 28 30 25 24 Greatest Overweight (x) 11 | . . 6 1 . 3 2 1 1 1 . . . 11 4 1 . Average Overweight (x) . | . . . . . . . . 1 . . . . . . . . Largest Inventory Capacity 8 | 8 8 5 5 5 5 5 5 5 5 5 5 5 5 5 5 5 Average Capacity 5 | 7 5 5 5 5 5 5 5 5 5 5 5 5 5 5 5 5 Most Carried 5 | 4 5 5 5 5 5 5 5 3 5 5 5 1 5 5 3 3 Average Carried 3 | 1 2 4 4 3 3 2 3 3 4 5 2 1 2 4 1 1 Final Capacity 8 | 8 5 5 5 5 5 5 5 5 5 5 5 5 5 5 5 5 Final Carried 5 | 1 4 5 4 3 5 3 3 3 5 5 1 1 5 2 1 2 Class Distribution -------------------- 42% | Mutant 13% | Scavenger-Mutant 12% | Tank 6% | Derelict-Mutant 5% | Skirmisher 4% | Scavenger-Gunner 4% | Scavenger-Skirmisher 4% | Hacker-Mutant Dominant Class ---------------- Mutant | -10/Materials Mutant | -10/Subcaves Tank | -8/Materials Tank | -8/Garrison Skirmisher | -8/Materials Mutant | -7/Factory Mutant | -7/Garrison Scavenger-Skirmisher | -7/Factory Scavenger-Skirmisher | -7/DSF Scavenger-Gunner | -6/Factory Scavenger-Gunner | -6/Waste Scavenger-Gunner | -6/Factory Gunner | -6/DSF Mutant | -5/Factory Hacker-Mutant | -4/Factory Mutant | -4/Garrison Resources | -11 -10 -10 -8 -8 -8 -7 -7 -7 -7 -6 -6 -6 -6 -5 -4 -4 ----------- Run | Yrd Mat Sub Mat Gar Mat Fac Gar Fac DSF Fac Was Fac DSF Fac Fac Gar Matter Collected 3104 | 203 499 365 328 771 556 80 102 . 92 . 61 . 2 15 5 25 Remotely . | . . . . . . . . . . . . . . . . . Salvage Created 4395 | . 706 352 571 716 811 . 121 . 212 . 861 . 30 15 . . Parts 195 | . 50 20 25 28 43 . 10 . 13 . 4 . 1 1 . . Haulers Intercepted 2 | . 1 . 1 . . . . . . . . . . . . . Recyclers Shooed . | . . . . . . . . . . . . . . . . . Parts Field Recycled . | . . . . . . . . . . . . . . . . . Retrieved Matter . | . . . . . . . . . . . . . . . . . Parts Self-Destructed 2 | . . 2 . . . . . . . . . . . . . . Prevented . | . . . . . . . . . . . . . . . . . Kills | -11 -10 -10 -8 -8 -8 -7 -7 -7 -7 -6 -6 -6 -6 -5 -4 -4 ------- Run | Yrd Mat Sub Mat Gar Mat Fac Gar Fac DSF Fac Was Fac DSF Fac Fac Gar Combat Hostiles Destroyed 85 | . 19 11 9 17 18 . 2 . 5 . 3 . 1 . . . Melee 3 | . . 3 . . . . . . . . . . . . . . Guns 75 | . 19 2 9 17 18 . 2 . 5 . 3 . . . . . Cannons 1 | . . . . . . . . . . . . . 1 . . . AOE 6 | . . 6 . . . . . . . . . . . . . . Classes Destroyed 11 | . 5 1 1 . . . 1 . 1 . 1 . . 1 . . Worker 1 | . . . . . . . . . . . . . . 1 . . Hauler 2 | . 1 . 1 . . . . . . . . . . . . . Operator 1 | . 1 . . . . . . . . . . . . . . . Watcher 4 | . 1 . 2 . 1 . . . . . . . . . . . Swarmer 9 | . 6 . . . 3 . . . . . . . . . . . Grunt 51 | . 13 2 8 15 13 . . . . . . . . . . . Sentry 6 | . . . 1 2 2 . 1 . . . . . . . . . Specialist 6 | . . . . . . . . . 5 . . . 1 . . . Hunter 1 | . . . . . . . 1 . . . . . . . . . Compactor 3 | . . . . . . . . . . . 3 . . . . . Subdweller 9 | . . 9 . . . . . . . . . . . . . . Best Kill Streak 12 | . 5 5 5 3 12 . 1 . 2 . 1 . 1 1 . . Combat Bots Only 9 | . 4 5 4 3 9 . 1 . 2 . 1 . 1 . . . Max Kills in Single Turn 2 | . 2 2 1 2 1 . 1 . 1 . 1 . 1 1 . . Gunslinging 1 | . 1 . . 1 . . . . . . . . . . . . Exploded 2 | . . 2 . . . . . . . . . . . . . . Melee 1 | . . 1 . . . . . . . . . . . . . . Uniques/NPCs Destroyed . | . . . . . . . . . . . . . . . . . Combat | -11 -10 -10 -8 -8 -8 -7 -7 -7 -7 -6 -6 -6 -6 -5 -4 -4 -------- Run | Yrd Mat Sub Mat Gar Mat Fac Gar Fac DSF Fac Was Fac DSF Fac Fac Gar Hostile Shots Fired 769 | . 80 53 50 124 102 . 40 . 16 . 2 . 87 73 24 118 Missed 233 | . 24 23 12 30 31 . 12 . 3 . 1 . 13 36 8 40 Damage Taken 8764 | . 568 627 600 1544 974 . 358 . 283 . 46 . 1682 596 371 1115 Core 2596 | . 104 125 91 60 167 . 99 . 55 . . . 441 297 154 1003 Absorbed by Shields 222 | . . . . . . . . . . . . . 64 . . 158 Core Remaining (%) 57 | 100 . 8 . . 42 . . . 78 . . . 48 70 . . Volleys Fired 242 | . 75 17 26 44 41 . 15 . 8 . 10 . 6 . . . Largest 4 | . 2 2 3 3 3 . 2 . 3 . 3 . 4 . . . Hottest 224 | . 85 110 170 81 78 . 50 . 133 . 153 . 224 . . . Shots Fired 562 | . 130 28 62 122 118 . 23 . 24 . 32 . 23 . . . Gun 530 | . 130 20 62 120 118 . 23 . 24 . 31 . 2 . . . Cannon 22 | . . . . . . . . . . . 1 . 21 . . . Launcher 10 | . . 8 . 2 . . . . . . . . . . . . Special . | . . . . . . . . . . . . . . . . . Kinetic 482 | . 127 17 19 120 118 . 23 . 16 . 21 . 21 . . . Thermal 50 | . 3 9 17 . . . . . 8 . 11 . 2 . . . Explosive 2 | . . . . 2 . . . . . . . . . . . . Electromagnetic 28 | . . 2 26 . . . . . . . . . . . . . Robot Hit Streak 30 | . 12 13 5 13 30 . 6 . 17 . 15 . 2 . . . Robot Miss Streak 6 | . 3 1 4 6 3 . 2 . 2 . 4 . 3 . . . Penetration Max . | . . . . . . . . . . . . . . . . . Secondary Targets 7 | . 1 . 2 4 . . . . . . . . . . . . Max Gunslinging Chain 1 | . 1 . 1 1 . . . . . . . . . . . . Shots Hit Robots 370 | . 82 33 41 66 74 . 17 . 18 . 26 . 13 . . . Core Hits 242 | . 34 18 25 75 37 . 6 . 14 . 25 . 5 3 . . Critical Kills 2 | . 2 . . . . . . . . . . . . . . . Critical Parts Destroyed 2 | . 2 . . . . . . . . . . . . . . . Critical Strikes 5 | . 4 1 . . . . . . . . . . . . . . Destroy 4 | . 4 . . . . . . . . . . . . . . . Sever 1 | . . 1 . . . . . . . . . . . . . . Melee Attacks 21 | . . 21 . . . . . . . . . . . . . . Impact . | . . . . . . . . . . . . . . . . . Slashing 21 | . . 21 . . . . . . . . . . . . . . Piercing . | . . . . . . . . . . . . . . . . . Sneak Attacks . | . . . . . . . . . . . . . . . . . Combat Hostiles . | . . . . . . . . . . . . . . . . . Follow-up Attacks . | . . . . . . . . . . . . . . . . . Damage Inflicted 7684 | . 1080 1347 991 1349 1341 . 216 . 362 . 640 . 296 59 . 3 Guns 6056 | . 1077 266 797 1314 1341 . 216 . 362 . 640 . 43 . . . Cannons 253 | . . . . . . . . . . . . . 253 . . . Explosions 948 | . . 719 194 35 . . . . . . . . . . . . Melee 362 | . . 362 . . . . . . . . . . . . . . Ramming 65 | . 3 . . . . . . . . . . . . 59 . 3 Kinetic 5759 | . 1044 837 230 1314 1341 . 216 . 177 . 347 . 253 . . . Thermal 1093 | . 33 126 413 . . . . . 185 . 293 . 43 . . . Explosive 35 | . . . . 35 . . . . . . . . . . . . Electromagnetic 370 | . . 22 348 . . . . . . . . . . . . . Impact . | . . . . . . . . . . . . . . . . . Slashing 362 | . . 362 . . . . . . . . . . . . . . Piercing . | . . . . . . . . . . . . . . . . . Highest Corruption 24 | . 1 1 . . . . . . . . 24 24 24 2 . 1 Average Corruption 4 | . 1 1 . . . . . . . . 13 24 24 1 . 1 Corruption Purged 1 | . . 1 . . . . . . . . . . . . . . Corruption Blocked . | . . . . . . . . . . . . . . . . . Effects 35 | . 4 8 . . . . . . . . 13 1 7 1 . 1 Message Errors 8 | . 2 2 . . . . . . . . 2 . 1 . . 1 Matter Fused 10 | . 2 2 . . . . . . . . 3 1 1 1 . . Heat Flow Errors 3 | . . 1 . . . . . . . . . . 2 . . . Energy Discharges 1 | . . . . . . . . . . . 1 . . . . . Parts Fused 1 | . . 1 . . . . . . . . . . . . . . Data Loss (minor) 4 | . . 1 . . . . . . . . 1 . 2 . . . Data Loss (major) 1 | . . . . . . . . . . . . . 1 . . . Misfires 4 | . . 1 . . . . . . . . 3 . . . . . Misdirections 2 | . . . . . . . . . . . 2 . . . . . Weapon Failures 1 | . . . . . . . . . . . 1 . . . . . Overload Shots . | . . . . . . . . . . . . . . . . . Overflow Damage 31 | . . . 31 . . . . . . . . . . . . . Projectiles . | . . . . . . . . . . . . . . . . . Explosions 31 | . . . 31 . . . . . . . . . . . . . Melee . | . . . . . . . . . . . . . . . . . Knockbacks . | . . . . . . . . . . . . . . . . . Impact . | . . . . . . . . . . . . . . . . . Kinetic . | . . . . . . . . . . . . . . . . . Secondary . | . . . . . . . . . . . . . . . . . Self-Inflicted Damage 58 | . . 13 . 19 . . . . . . . . . 25 . 1 Shots 2 | . . 1 . 1 . . . . . . . . . . . . Rammed 13 | . . . . . . . . . . . . . . 12 . 1 Targets Rammed 14 | . 1 . . . . . . . . . . . . 12 . 1 Kicked 1 | . 1 . . . . . . . . . . . . . . . Crushed . | . . . . . . . . . . . . . . . . . Highest Temperature 582 | . 48 191 582 109 96 . . . . . 164 . 276 . . . Average Temperature 88 | . 26 101 219 36 36 . . . . . 59 . 77 . . . Received Heat Transfer 2323 | . 243 207 369 711 495 . 24 . 18 . . . 54 9 60 133 Effects 13 | . . . 13 . . . . . . . . . . . . . Shutdowns 4 | . . . 4 . . . . . . . . . . . . . Energy Bleed 1 | . . . 1 . . . . . . . . . . . . . Interference 2 | . . . 2 . . . . . . . . . . . . . Matter Decay 2 | . . . 2 . . . . . . . . . . . . . Short Circuit 2 | . . . 2 . . . . . . . . . . . . . Damage (minor) 2 | . . . 2 . . . . . . . . . . . . . Siege Activations . | . . . . . . . . . . . . . . . . . Robots Corrupted . | . . . . . . . . . . . . . . . . . Combat Hostiles . | . . . . . . . . . . . . . . . . . Parts Fried . | . . . . . . . . . . . . . . . . . Impact Corruptions . | . . . . . . . . . . . . . . . . . Robots Melted . | . . . . . . . . . . . . . . . . . Combat Hostiles . | . . . . . . . . . . . . . . . . . Parts Melted 1 | . . . 1 . . . . . . . . . . . . . Heat Transferred 2020 | . 74 296 475 . . . . . 425 . 650 . 100 . . . Parts Sabotaged . | . . . . . . . . . . . . . . . . . Parts Stolen . | . . . . . . . . . . . . . . . . . Parts Stripped . | . . . . . . . . . . . . . . . . . Power Chain Reactions 2 | . . . 2 . . . . . . . . . . . . . Alert | -11 -10 -10 -8 -8 -8 -7 -7 -7 -7 -6 -6 -6 -6 -5 -4 -4 ------- Run | Yrd Mat Sub Mat Gar Mat Fac Gar Fac DSF Fac Was Fac DSF Fac Fac Gar Peak Influence 739 | . 389 . 255 594 739 346 179 93 190 99 34 14 25 42 23 16 Initial 336 | . . . . 35 276 336 119 93 65 99 34 14 13 7 2 16 Average 193 | . 171 . 134 391 444 253 154 93 116 99 21 14 12 23 10 4 Maximum Alert Level 3 | . 1 . 1 2 3 1 . . . . . . . . . . Low Security (%) 58 | 100 47 . 64 21 . 44 100 100 100 100 100 100 100 100 100 100 Level 1 29 | . 52 . 35 17 49 55 . . . . . . . . . . Level 2 11 | . . . . 61 34 . . . . . . . . . . . Level 3 1 | . . . . . 15 . . . . . . . . . . . Level 4 . | . . . . . . . . . . . . . . . . . Level 5 . | . . . . . . . . . . . . . . . . . High Security . | . . . . . . . . . . . . . . . . . Max Security . | . . . . . . . . . . . . . . . . . Squads Dispatched 13 | . 6 . 1 . 3 . . . 1 . . . 2 . . . Investigation 3 | . 2 . 1 . . . . . . . . . . . . . Extermination . | . . . . . . . . . . . . . . . . . Reinforcement 10 | . 4 . . . 3 . . . 1 . . . 2 . . . Assault . | . . . . . . . . . . . . . . . . . Garrison . | . . . . . . . . . . . . . . . . . Intercept . | . . . . . . . . . . . . . . . . . Searches Triggered . | . . . . . . . . . . . . . . . . . Construction Impeded . | . . . . . . . . . . . . . . . . . Haulers Reinforced . | . . . . . . . . . . . . . . . . . Active Scanning Responses . | . . . . . . . . . . . . . . . . . Cargo Convoy Interrupts . | . . . . . . . . . . . . . . . . . Stealth | -11 -10 -10 -8 -8 -8 -7 -7 -7 -7 -6 -6 -6 -6 -5 -4 -4 --------- Run | Yrd Mat Sub Mat Gar Mat Fac Gar Fac DSF Fac Was Fac DSF Fac Fac Gar Distress Signals 6 | . 1 . . . 5 . . . . . . . . . . . Communications Jammed . | . . . . . . . . . . . . . . . . . Distress Signals . | . . . . . . . . . . . . . . . . . Times Spotted 148 | . 26 10 13 21 30 . 2 . 6 . 6 . 6 9 5 14 Peak Tracking Total 13 | . 4 4 3 5 10 1 2 . 3 . 3 . 5 8 6 13 Tactical Retreats 15 | . 2 . 1 3 2 . . . 3 . 1 . 2 . 1 . Traps | -11 -10 -10 -8 -8 -8 -7 -7 -7 -7 -6 -6 -6 -6 -5 -4 -4 ------- Run | Yrd Mat Sub Mat Gar Mat Fac Gar Fac DSF Fac Was Fac DSF Fac Fac Gar Traps Triggered 14 | . 1 . 1 . . . 5 . 1 1 . . 1 . . 4 Indirectly . | . . . . . . . . . . . . . . . . . Trap Hack Attempts . | . . . . . . . . . . . . . . . . . Triggered . | . . . . . . . . . . . . . . . . . Disarmed . | . . . . . . . . . . . . . . . . . Reprogrammed 2 | . . . 2 . . . . . . . . . . . . . Reused 2 | . . . . . . . . . . . 2 . . . . . Traps Extracted . | . . . . . . . . . . . . . . . . . Installed 2 | . . . . . . . . . . . 2 . . . . . Triggered . | . . . . . . . . . . . . . . . . . Most Traps Carried 2 | . . 1 . . . . . . 2 2 2 . . . . . Machines | -11 -10 -10 -8 -8 -8 -7 -7 -7 -7 -6 -6 -6 -6 -5 -4 -4 ---------- Run | Yrd Mat Sub Mat Gar Mat Fac Gar Fac DSF Fac Was Fac DSF Fac Fac Gar Machines Disabled 7 | . 1 1 . 4 1 . . . . . . . . . . . Max in Single Turn 2 | . 1 1 . 2 1 . . . . . . . . . . . Garrison Relay 4 | . . . . 3 . . . . . . . . . . . 1 Phase Generator 1 | . . . . 1 . . . . . . . . . . . . Machines Repaired . | . . . . . . . . . . . . . . . . . Machines Dismantled . | . . . . . . . . . . . . . . . . . Machines Sabotaged . | . . . . . . . . . . . . . . . . . Overloaded Fab Kills . | . . . . . . . . . . . . . . . . . Hacking | -11 -10 -10 -8 -8 -8 -7 -7 -7 -7 -6 -6 -6 -6 -5 -4 -4 --------- Run | Yrd Mat Sub Mat Gar Mat Fac Gar Fac DSF Fac Was Fac DSF Fac Fac Gar Machines Accessed 22 | . 4 1 5 1 . 5 . 2 . . . 1 . . 3 . Terminals 12 | . 3 . 3 1 . 2 . 1 . . . 1 . . 1 . Fabricators 2 | . . . . . . 1 . . . . . . . . 1 . Repair Stations . | . . . . . . . . . . . . . . . . . Recycling Units 2 | . 1 . . . . 1 . . . . . . . . . . Scanalyzers 2 | . . . 1 . . . . 1 . . . . . . . . Garrison Access 3 | . . . 1 . . 1 . . . . . . . . 1 . Total Hacks 69 | . 12 9 17 2 . 10 . 6 . . . 1 . . 12 . Successful 40 | . 5 9 10 . . 5 . 1 . . . 1 . . 9 . Failed 29 | . 7 . 7 2 . 5 . 5 . . . . . . 3 . Catastrophic 3 | . 1 . 2 . . . . . . . . . . . . . Database Lockouts . | . . . . . . . . . . . . . . . . . Manual 29 | . 12 . 8 . . 6 . . . . . . . . 3 . Terminals 43 | . 11 . 11 2 . 6 . 4 . . . 1 . . 8 . Fabricators 3 | . . . . . . 1 . . . . . . . . 2 . Repair Stations . | . . . . . . . . . . . . . . . . . Recycling Units 3 | . 1 . . . . 2 . . . . . . . . . . Scanalyzers 7 | . . . 5 . . . . 2 . . . . . . . . Garrison Access 4 | . . . 1 . . 1 . . . . . . . . 2 . Terminal Hacks 21 | . 2 9 3 . . . . 1 . . . 1 . . 5 . Record 11 | . . 8 . . . . . . . . . . . . 3 . Open DSF 2 | . . . . . . . . 1 . . . 1 . . . . Alert Level 1 | . . . . . . . . . . . . . . . 1 . Reprogram Traps 1 | . . . 1 . . . . . . . . . . . . . Recall Reinforcements 1 | . 1 . . . . . . . . . . . . . . . Hauler Manifests 2 | . . . 1 . . . . . . . . . . . 1 . Zone Layout 2 | . 1 . 1 . . . . . . . . . . . . . Derelict Proto ID Bank 1 | . . 1 . . . . . . . . . . . . . . Fabricator Hacks 2 | . . . . . . 1 . . . . . . . . 1 . Build 2 | . . . . . . 1 . . . . . . . . 1 . Repair Station Hacks . | . . . . . . . . . . . . . . . . . Recycling Unit Hacks 1 | . 1 . . . . . . . . . . . . . . . Report Inventory 1 | . 1 . . . . . . . . . . . . . . . Scanalyzer 4 | . . . 4 . . . . . . . . . . . . . Insert Component 2 | . . . 2 . . . . . . . . . . . . . Analyze 2 | . . . 2 . . . . . . . . . . . . . Garrison Access Hacks 4 | . . . 1 . . 1 . . . . . . . . 2 . Unlock Access 3 | . . . 1 . . 1 . . . . . . . . 1 . Coupler Status 1 | . . . . . . . . . . . . . . . 1 . Unauthorized Hacks 8 | . 2 . 2 . . 3 . . . . . . . . 1 . Terminals 7 | . 2 . 2 . . 2 . . . . . . . . 1 . Botnet 7 | . 2 . 2 . . 2 . . . . . . . . 1 . Fabricators . | . . . . . . . . . . . . . . . . . Repair Stations . | . . . . . . . . . . . . . . . . . Recycling Units 1 | . . . . . . 1 . . . . . . . . . . Reject 1 | . . . . . . 1 . . . . . . . . . . Scanalyzers . | . . . . . . . . . . . . . . . . . Garrison Access . | . . . . . . . . . . . . . . . . . Data Cores Recovered . | . . . . . . . . . . . . . . . . . Used . | . . . . . . . . . . . . . . . . . Hacking Detections 15 | . 3 . 3 1 . 5 . 1 . . . . . . 2 . Full Trace Events 1 | . 1 . . . . . . . . . . . . . . . Feedback Events 1 | . 1 . . . . . . . . . . . . . . . Corruption 1 | . 1 . . . . . . . . . . . . . . . Feedback Blocked . | . . . . . . . . . . . . . . . . . Robot Schematics Acquired . | . . . . . . . . . . . . . . . . . Robots Built . | . . . . . . . . . . . . . . . . . Authchips . | . . . . . . . . . . . . . . . . . Time . | . . . . . . . . . . . . . . . . . Total Robot Build Rating . | . . . . . . . . . . . . . . . . . Part Schematics Acquired 1 | . . . 1 . . . . . . . . . . . . . Parts Built 4 | . . . . . . 2 . . . . . . . . 2 . Authchips . | . . . . . . . . . . . . . . . . . Time 123 | . . . . . . 84 . . . . . . . . 39 . Total Part Build Rating 22 | . . . . . . 8 . . . . . . . . 14 . Parts Repaired . | . . . . . . . . . . . . . . . . . Time . | . . . . . . . . . . . . . . . . . Parts Recycled . | . . . . . . . . . . . . . . . . . Recycled Matter . | . . . . . . . . . . . . . . . . . Retrieved Matter . | . . . . . . . . . . . . . . . . . Retrieved Components . | . . . . . . . . . . . . . . . . . Parts Scanalyzed 2 | . . . 2 . . . . . . . . . . . . . Part Schematics Acquired 1 | . . . 1 . . . . . . . . . . . . . Parts Damaged . | . . . . . . . . . . . . . . . . . Bothacking | -11 -10 -10 -8 -8 -8 -7 -7 -7 -7 -6 -6 -6 -6 -5 -4 -4 ------------ Run | Yrd Mat Sub Mat Gar Mat Fac Gar Fac DSF Fac Was Fac DSF Fac Fac Gar Used RIF Installer 1 | . . . . . . . 1 . . . . . . . . . Robots Hacked . | . . . . . . . . . . . . . . . . . Non-combat . | . . . . . . . . . . . . . . . . . Combat . | . . . . . . . . . . . . . . . . . Robot Hacks Applied . | . . . . . . . . . . . . . . . . . Relay Couplers Released 18 | . . . . 13 . . . . . . . . . . . 5 Machine Destruction 18 | . . . . 13 . . . . . . . . . . . 5 Attached 1 | . . . . . . . . . . . . . . . . 1 Fabnet Peak Effective % . | . . . . . . . . . . . . . . . . . Robots Rewired . | . . . . . . . . . . . . . . . . . Allies Hacked . | . . . . . . . . . . . . . . . . . Hacks Repelled . | . . . . . . . . . . . . . . . . . Allies | -11 -10 -10 -8 -8 -8 -7 -7 -7 -7 -6 -6 -6 -6 -5 -4 -4 -------- Run | Yrd Mat Sub Mat Gar Mat Fac Gar Fac DSF Fac Was Fac DSF Fac Fac Gar Total Allies 1 | . . . . . . . . . . . 1 . . . . . Largest Group 1 | . . . . . . . . . . . 1 . . . . . Highest-Rated Group 31 | . . . . . . . . . . . 31 . . . . . Highest-Rated Ally 31 | . . . . . . . . . . . 31 . . . . . Total Orders . | . . . . . . . . . . . . . . . . . Ally Attacks 14 | . . . . . . . . . . . 14 . . . . . Total Damage 231 | . . . . . . . . . . . 231 . . . . . Kills . | . . . . . . . . . . . . . . . . . Allies Corrupted . | . . . . . . . . . . . . . . . . . Allies Melted . | . . . . . . . . . . . . . . . . . Intel | -11 -10 -10 -8 -8 -8 -7 -7 -7 -7 -6 -6 -6 -6 -5 -4 -4 ------- Run | Yrd Mat Sub Mat Gar Mat Fac Gar Fac DSF Fac Was Fac DSF Fac Fac Gar Robot Analysis Total . | . . . . . . . . . . . . . . . . . Derelict Logs Recovered 1 | . . 1 . . . . . . . . . . . . . . Drone Launches . | . . . . . . . . . . . . . . . . . Drone Recoveries . | . . . . . . . . . . . . . . . . . Exploration | -11 -10 -10 -8 -8 -8 -7 -7 -7 -7 -6 -6 -6 -6 -5 -4 -4 ------------- Run | Yrd Mat Sub Mat Gar Mat Fac Gar Fac DSF Fac Was Fac DSF Fac Fac Gar Turns Passed 6941 | 61 1220 1590 550 757 398 715 271 111 191 28 241 8 141 408 171 80 Spaces Moved 4117 | 50 509 777 289 356 178 480 179 96 145 29 163 9 81 523 151 102 Core 242 | 16 . 33 . . 3 . . . . . . . 20 57 47 66 Treads 632 | . . . 180 356 96 . . . . . . . . . . . Legs 966 | 34 509 333 10 . . . . . . . . . 18 . 62 . Wheels 1733 | . . 411 99 . 79 480 179 96 145 29 163 9 43 . . . Hover 509 | . . . . . . . . . . . . . . 466 42 1 Flight 35 | . . . . . . . . . . . . . . . . 35 Fastest Speed 35 | 50 120 110 90 166 90 95 95 115 100 100 100 100 50 50 50 35 Average Speed 113 | 97 120 137 140 166 138 105 102 115 105 100 100 100 120 54 81 44 Slowest Speed 600 | 120 120 350 170 166 200 120 115 115 115 100 100 100 600 250 120 56 Overloaded Moves . | . . . . . . . . . . . . . . . . . Propulsion Burnouts . | . . . . . . . . . . . . . . . . . Robots Hopped . | . . . . . . . . . . . . . . . . . Cave-ins Triggered . | . . . . . . . . . . . . . . . . . Exploration Rate (%) 33 | 4 66 54 19 46 17 13 30 1 88 2 87 . 71 8 4 24 Regions Visited 16 Branch Regions 1 Pre-discovered Areas 2 | . . 2 . . . . . . . . . . . . . . Known Exits Taken 7 | . 1 . 1 . 1 1 . 1 . . . 1 . . 1 . Unknown Exits Taken 3 | 1 . 1 . . . . . . . . . . . 1 . . Scrap Searched 11 | . . 11 . . . . . . . . . . . . . . Spaces Dug . | . . . . . . . . . . . . . . . . . Terrain Destroyed 193 | . . 79 8 105 . . . . . . 1 . . . . . Melee . | . . . . . . . . . . . . . . . . . Projectile 1 | . . . . . . . . . . . 1 . . . . . AOE 192 | . . 79 8 105 . . . . . . . . . . . . Terrain Rammed . | . . . . . . . . . . . . . . . . . Walls Destroyed . | . . . . . . . . . . . . . . . . . Machines Disabled . | . . . . . . . . . . . . . . . . . Actions | -11 -10 -10 -8 -8 -8 -7 -7 -7 -7 -6 -6 -6 -6 -5 -4 -4 --------- Run | Yrd Mat Sub Mat Gar Mat Fac Gar Fac DSF Fac Was Fac DSF Fac Fac Gar Total 5915 | 62 988 1240 385 435 260 687 249 96 166 29 220 8 108 647 199 136 Wait 1225 | . 385 380 23 22 9 196 24 1 9 . 33 . . 101 39 3 Move 4102 | 49 508 776 288 355 177 479 177 95 144 29 162 8 80 523 150 102 Hop . | . . . . . . . . . . . . . . . . . Pick Up 104 | 7 9 17 18 4 15 4 3 . 3 . 2 . 11 4 4 3 Fast Attach . | . . . . . . . . . . . . . . . . . Attach 82 | 6 4 10 14 4 11 3 2 . 1 . 6 . 7 7 5 2 Detach 4 | . . 2 . . . . . . . . 2 . . . . . Swap 26 | . 3 7 5 4 4 2 1 . . . . . . . . . Drop 39 | . 3 10 11 2 3 3 1 . 1 . 3 . . 1 1 . Fire 242 | . 75 17 26 44 41 . 15 . 8 . 10 . 6 . . . Melee 21 | . . 21 . . . . . . . . . . . . . . Ram 12 | . . . . . . . . . . . . . . 11 . 1 Kick 1 | . 1 . . . . . . . . . . . . . . . Crush . | . . . . . . . . . . . . . . . . . Escape Stasis 55 | . . . . . . . 26 . . . . . 4 . . 25 Rewire . | . . . . . . . . . . . . . . . . . Trap 2 | . . . . . . . . . . . 2 . . . . . Miscellaneous . | . . . . . . . . . . . . . . . . . Route ------- -11/Scrapyard -10/Materials (discovered 3 exits: *Mat x2 / *Sub) -10/Subcaves -8/Materials -8/Garrison -8/Materials -7/Factory -7/Garrison -7/Factory -7/DSF -6/Factory -6/Waste -6/Factory -6/DSF -5/Factory -4/Factory -4/Garrison History --------- Turn | Location | Event 2 | -11/Scrapyard | Discovered new exit (range 16) 62 | -11/Scrapyard | Entered Materials 282 | -10/Materials | Discovered new exit (range 5) 305 | -10/Materials | Identified exit to Materials 318 | -10/Materials | Build established: Mutant 841 | -10/Materials | Discovered exit to Materials (range 15) 1150 | -10/Materials | Build established: Scavenger-Mutant 1264 | -10/Materials | Discovered new exit (range 5) 1281 | -10/Materials | Identified exit to Subcaves 1282 | -10/Materials | Entered Subcaves 1315 | -10/Subcaves | Shifting Twisted Machinery released Sub. Power Source 1329 | -10/Subcaves | Shifting Twisted Machinery released Sub. Optics 1505 | -10/Subcaves | Shifting Twisted Machinery released Piercing Trap 1507 | -10/Subcaves | Shifting Twisted Machinery released Sub. Beam Cannon 1573 | -10/Subcaves | Learned location of Storage (-7) 1582 | -10/Subcaves | A swath of the cavern ceiling suddenly collapsed 1633 | -10/Subcaves | Shifting Twisted Machinery released Piercing Trap 1688 | -10/Subcaves | Shifting Twisted Machinery released Ripper 1782 | -10/Subcaves | Visited 4L-MR0's lab 1844 | -10/Subcaves | Found Gun Armor 1846 | -10/Subcaves | Attached Gun Armor, gained temporary slots: Weapon x2 1907 | -10/Subcaves | Core integrity fell below 50% 1974 | -10/Subcaves | Build established: Mutant 2040 | -10/Subcaves | Learned location of Zion (-6) 2040 | -10/Subcaves | Met a Zionite searching for "candidates" 2119 | -10/Subcaves | Core integrity fell below 20% 2149 | -10/Subcaves | Lost 3 parts (1p2w) 2416 | -10/Subcaves | Disturbed a concealed Subdweller 2713 | -10/Subcaves | Build established: Derelict-Mutant 2861 | -10/Subcaves | Discovered new exit (range 9) 2872 | -10/Subcaves | Entered Materials 2872 | -8/Materials | Evolved 4 slots: Power x1, Propulsion x1, Utility x1, Weapon x1 3417 | -8/Materials | Identified exit to Garrison 3422 | -8/Materials | Entered Garrison 3460 | -8/Garrison | Triggered checkpoint 3509 | -8/Garrison | Build established: Tank 3509 | -8/Garrison | Garrison Relay disabled 3525 | -8/Garrison | Garrison Relay disabled 3538 | -8/Garrison | Triggered checkpoint 3655 | -8/Garrison | Phase Generator disabled 3661 | -8/Garrison | Spotted B-75 Beast 3765 | -8/Garrison | Triggered checkpoint 3791 | -8/Garrison | Lost 3 parts (2p1w) 4033 | -8/Garrison | Discovered new exit (range 4) 4088 | -8/Garrison | Spotted B-75 Beast 4088 | -8/Garrison | Spotted B-75 Beast 4136 | -8/Garrison | Triggered checkpoint 4157 | -8/Garrison | Lost 4 parts (2u2w) 4179 | -8/Garrison | Entered Materials 4355 | -8/Materials | Lost 3 parts (1p1n1w) 4457 | -8/Materials | Lost 4 parts (1p2n1w) 4459 | -8/Materials | Core integrity fell below 50% 4501 | -8/Materials | Destroyed 9 combat bots 4548 | -8/Materials | Discovered new exit (range 15) 4563 | -8/Materials | Identified exit to Factory 4577 | -8/Materials | Entered Factory 4577 | -7/Factory | Evolved 2 slots: Utility x2 4758 | -7/Factory | Fabricated Imp. Deuterium Engine? 5068 | -7/Factory | Build established: Mutant 5290 | -7/Factory | Identified exit to Garrison 5292 | -7/Factory | Entered Garrison 5466 | -7/Garrison | Triggered checkpoint 5540 | -7/Garrison | Installed Relay Interface Framework 5548 | -7/Garrison | Discovered new exit (range 13) 5561 | -7/Garrison | Identified exit to Factory 5563 | -7/Garrison | Entered Factory 5673 | -7/Factory | Identified exit to DSF 5674 | -7/Factory | Entered DSF 5728 | -7/DSF | Additional patrols routed to DSF 5782 | -7/DSF | Build established: Scavenger-Skirmisher 5827 | -7/DSF | Discovered new exit (range 15) 5864 | -7/DSF | Identified exit to Factory 5865 | -7/DSF | Entered Factory 5865 | -6/Factory | Evolved 2 slots: Propulsion x1, Weapon x1 5893 | -6/Factory | Sucked down chute 5893 | -6/Factory | Entered Waste 5894 | -6/Waste | Met a frightened Derelict 5901 | -6/Waste | Spotted C-40 Crusher 5908 | -6/Waste | EMP discharged 5916 | -6/Waste | Destroyed C-40 Crusher 5919 | -6/Waste | Spotted C-40 Crusher 5937 | -6/Waste | Destroyed C-40 Crusher 6008 | -6/Waste | EMP discharged 6008 | -6/Waste | System corruption reached 10% 6012 | -6/Waste | Spotted C-40 Crusher 6024 | -6/Waste | Spotted C-40 Crusher 6027 | -6/Waste | Spotted C-40 Crusher 6030 | -6/Waste | Crushed by Compactor (1 part destroyed, 1 dropped) 6035 | -6/Waste | Destroyed C-40 Crusher 6050 | -6/Waste | Spotted C-40 Crusher 6108 | -6/Waste | EMP discharged 6124 | -6/Waste | Discovered new exit (range 11) 6133 | -6/Waste | Identified exit to Factory 6134 | -6/Waste | Entered Factory 6142 | -6/Factory | Identified exit to DSF 6142 | -6/Factory | Entered DSF 6166 | -6/DSF | Additional patrols routed to DSF 6240 | -6/DSF | Lost 6 parts (1n1u4w) 6262 | -6/DSF | Discovered new exit (range 15) 6278 | -6/DSF | Core integrity fell below 50% 6283 | -6/DSF | Identified exit to Factory 6283 | -6/DSF | Entered Factory 6283 | -5/Factory | Evolved 2 slots: Propulsion x2 6304 | -5/Factory | Lost 5 parts (1p4w) 6570 | -5/Factory | Build established: Mutant 6683 | -5/Factory | Discovered new exit (range 15) 6691 | -5/Factory | Entered another Factory area 6691 | -4/Factory | Evolved 2 slots: Utility x2 6697 | -4/Factory | Identified exit to Garrison 6715 | -4/Factory | Lost 5 parts (1p3n1u) 6816 | -4/Factory | Fabricated Imp. Antigrav System (x2) 6862 | -4/Factory | Entered Garrison 6868 | -4/Garrison | Lost 3 parts (1p1u1w) 6876 | -4/Garrison | Triggered checkpoint 6878 | -4/Garrison | Build established: Hacker-Mutant 6910 | -4/Garrison | Core integrity fell below 50% 6916 | -4/Garrison | Garrison Relay disabled 6925 | -4/Garrison | Lost 3 parts (2n1u) 6927 | -4/Garrison | Core integrity fell below 20% 6934 | -4/Garrison | Spotted B-86 Titan 6936 | -4/Garrison | Triggered checkpoint 6937 | -4/Garrison | Triggered checkpoint 6942 | -4/Garrison | Destroyed by S-27 Virus with Autogun Last Messages --------------- Field strength at 9. Stasis field depleted. Acquired Relay Coupler [Grunt]. Critical hit (Burn: +50). S-27 Virus destroyed. Acquired Autogun. Acquired 25 matter. Acquired VTOL Module. Beams of light sweep through the air. An alarm sounds. Garrison Door breached. Beams of light sweep through the air. An alarm sounds. Penetrated by Slug. V8L/DOMHWKG=IW=GSL86M9ENZSLQH/ Triggered Stasis Trap. A bubble of rippling energy engulfs the area. Field strength at 95. Field strength at 90. Slug penetrates Wall. Field strength at 77. [Achievement: Just Browsing] Map ----- +----------------------------------------------------+ | ??# #??????????????????????????????????????????? | | ??# #??????????????????????????????????????????? | | ??# #??????????????????????????????????????????? | | ??# #??????????????????????????????????????????? | | ??# #??????????????????????????????????????????? | | ??# #??????????????????????????????????????????? | | ??# #??????????????????????????????????????????? | | ??# #??????????????????????????????????????????? | | ??# #??????????????????????????????????????????? | | ??# #??????????????????????????????????????????? | | ??# #??????????????????????????????????????????? | | ??# #??????????????????????????????????????????? | | ??# #??????????????????????????????????????????? | | ??# #??????????????????????????????????????????? | | ??# #??????????????????????????????????????????? | | ??# #??????????????????????????????????????????? | | ??# #??????????????????#####???????????????????? | | ??# #?????????????????# ???????????????????? | | ### #?????????????????# ????????????????????? | | / ???????????????# ????????????????????? | | ^ / ???????????????# #????????????????????? | | ## #?????????????????# #????????????????????? | | ## #?????????????????# #????????????????????? | | ### #?????????????????# #????????????????????? | | ??# #?????????????????# #????????????????????? | | ??# #???????????#######@ #????????????????????? | | ??# #???????????# ## #????????????????????? | | ??# ############# ##s #????????????????????? | | ??# s #????????????????????? | | ??# #????????????????????? | | ??# #????????????????????? | | ??############ ## ## #????????????????????? | | ?????????????# ## ## #????????????????????? | | ???????????? "????????????????????? | | ???????????# "????????????????????? | | ???????????# "????????????????????? | | ???????????# "????????????????????? | | ???????????### ## ## #????????????????????? | | ?????????????# ## #? #????????????????????? | | ?????????????# ???????????????????? | | ?????????????# ???????????????????? | | ?????????????# ##???????????????????? | | ?????????????## ##""""######????????????????????? | | ??????????????? #???????????????????????????????? | | ??????????????? #???????????????????????????????? | | ??????????????? #???????????????????????????????? | | ??????????????? ????????????????????????????????? | | ?????????????????????????????????????????????????? | | ?????????????????????????????????????????????????? | | ?????????????????????????????????????????????????? | +----------------------------------------------------+ Best States ------------- Heat Dissipation 53 Energy Generation 27 Energy Capacity 480 Matter Stores 450 Matter Capacity 450 Sight Range 16 Robot Scan Range 15 Terrain Scan Range 18 Terrain Scan Density 110 EM Shielding 2 Armor Coverage 160 Evasion (%) 63 Targeting Accuracy 8 Armor Integrity Analysis 30 Recoil Reduction 4 Offensive Hacking 10 Defensive Hacking 10 Relay Coupler Types 1 Relay Coupler Value 25 Item Schematics ----------------- Mak. Light Armor Plating | -8/Materials | Scanalyzed Robot Schematics ------------------ None Fabricated ------------ Imp. Deuterium Engine | x2 | -7/Factory | Preloaded Imp. Antigrav System | x2 | -4/Factory | Preloaded Alien Tech Used ----------------- None Achievements -------------- Just Browsing Just What I Needed Challenges ------------ None Game ------ Seed HellfireCloakingAccelerator Manual? 0 Play Time 01:17:03 Cumulative 18.8 hours Start 2024.04.13 @ 19:03:28 End 2024.04.13 @ 20:35:09 Sessions 1 Manual Loads 0 Difficulty Rogue Special Mode None Game No. 25 Rogue 23 Adventurer 2 Explorer 0 Win Type - Total 0 Types 0/0/0/0/0/0/0/0/0 Lore% 21 Gallery% 26 Achievement% 22 Wizard Run 0 Options --------- Layout 0 ASCII 0 Keyboard 0 Movement Mouse Keybinds 0 Fullscreen 2 Font 18/Smallcaps Map View 38x25 Zoom Use 90% Tactical HUD 0 Map Filters NONE Filters NONE Steam 1 RUN: d1000372-8201-464a-aedf-877ff4b409a4